fUST/lending_fUST_20260112
["ID","MTS","AMOUNT","RATE_DAILY","PERIOD"]
[401355163,1768151454620,-506.7938,0.00030137,4]
[401355164,1768151454630,-506.7938,0.00030137,2]
[401355165,1768151454639,-506.7938,0.00030137,3]
[401355166,1768151454649,-313.5924,0.00030137,4]
[401355167,1768151454659,-506.7938,0.00030137,2]
[401355168,1768151454668,-506.7938,0.00030137,3]
[401355169,1768151454679,-506.7938,0.00030137,4]
[401355170,1768151454688,-506.7938,0.00030137,2]
[401355171,1768151454698,-506.7938,0.00030137,3]
[401355172,1768151454707,-506.7938,0.00030137,4]
[401355173,1768151454717,-506.7938,0.00030137,2]
[401355174,1768151454727,-506.7938,0.00030137,3]
[401355175,1768151454736,-506.7938,0.00030137,4]
[401355176,1768151454746,-342.06,0.00030137,2]
[401355177,1768151454756,-500.0,0.00030151,7]
[401355178,1768151454765,-1366.0,0.00030163,2]
[401355179,1768151454775,-2156.89,0.00030163,2]
[401355180,1768151454783,-628.0,0.00030163,2]
[401355181,1768151454793,-417.0,0.00030163,2]
[401355182,1768151454802,-218.7,0.00030163,2]
[401355183,1768151454812,-500.0,0.00030236,7]
[401355184,1768151454822,-500.0,0.00030297,7]
[401355185,1768151454832,-3180.59,0.000303,14]
[401355186,1768151454841,-431.088,0.00030309,25]
[401355187,1768151454851,-178.052,0.00030309,25]
[401355188,1768151454861,-500.0,0.00030368,7]
[401355189,1768151454871,-500.0,0.0003041,8]
[401355190,1768151454881,-313.26361714,0.0003041,2]
[401355191,1768151454891,-755.83,0.0003041,8]
[401355192,1768151454901,-1000.0,0.0003041,2]
[401355193,1768151454911,-511.42,0.0003041,8]
[401355194,1768151454922,-637.48,0.0003041,2]
[401355195,1768151454931,-2011.31,0.0003041,8]
[401355196,1768151454942,-2769.41,0.0003041,3]
[401355197,1768151454954,-1000.0,0.0003041,2]
[401355198,1768151454963,-2486.72,0.0003041,8]
[401355199,1768151454973,-4899.58,0.0003041,8]
[401355200,1768151454983,-16913.26,0.0003041,8]
[401355201,1768151454993,-3222.62,0.0003041,8]
[401355202,1768151455003,-2226.28,0.0003041,8]
[401355203,1768151455013,-6797.13,0.0003041,8]
[401355204,1768151455022,-4204.37,0.0003041,8]
[401355205,1768151455032,-2536.91,0.0003041,8]
[401355206,1768151455043,-500.0,0.0003041,8]
[401355207,1768151455053,-166.0,0.00030438,40]
[401355208,1768151455062,-500.0,0.00030447,7]
[401355209,1768151455072,-500.0,0.00030517,7]
[401355210,1768151455081,-155.5739919,0.00030594,10]
[401355211,1768151455091,-500.0,0.00030624,7]
[401355212,1768151455101,-643.73891296,0.00030626,22]
[401355213,1768151455112,-500.0,0.00030648,7]
[401355214,1768151455123,-1820.0,0.0003067,2]
[401355215,1768151455133,-500.0,0.00030684,8]
[401355216,1768151455143,-755.83,0.00030684,8]
[401355217,1768151455153,-947.57794558,0.00030684,2]
[401355218,1768151455162,-511.42,0.00030684,8]
[401355219,1768151455173,-637.48,0.00030684,2]
[401355220,1768151455185,-2011.31,0.00030684,8]
[401355221,1768151455195,-2769.41,0.00030684,3]
[401355222,1768151455205,-1000.0,0.00030684,2]
[401355223,1768151455215,-2486.72,0.00030684,8]
[401355224,1768151455224,-4899.58,0.00030684,8]
[401355225,1768151455297,-16913.26,0.00030684,8]
[401355226,1768151455308,-3222.62,0.00030684,8]
[401355227,1768151455319,-2226.28,0.00030684,8]
[401355228,1768151455329,-6797.13,0.00030684,8]
[401355229,1768151455339,-4204.37,0.00030684,8]
[401355230,1768151455350,-2536.91,0.00030684,8]
[401355231,1768151455360,-521.89810151,0.00030684,8]
[401355232,1768151455370,-750.0,0.00030685,5]
[401355233,1768151455380,-500.0,0.00030685,120]
[401355234,1768151455390,-500.0,0.00030733,7]
[401355235,1768151455400,-901.30981745,0.00030734,7]
[401355236,1768151455409,-1820.0,0.00030806,7]
[401355237,1768151455418,-1820.0,0.00030814,7]
[401355238,1768151455428,-500.0,0.00030862,7]
[401355239,1768151455437,-1820.0,0.00030865,2]
[401355240,1768151455447,-5000.0,0.0003087,2]
[401355241,1768151455457,-500.0,0.00030927,7]
[401355242,1768151455467,-500.0,0.00030958,8]
[401355243,1768151455477,-755.83,0.00030958,8]
[401355244,1768151455486,-511.42,0.00030958,8]
[401355245,1768151455497,-637.48,0.00030958,2]
[401355246,1768151455507,-2011.31,0.00030958,8]
[401355247,1768151455518,-2769.41,0.00030958,3]
[401355248,1768151455528,-1000.0,0.00030958,2]
[401355249,1768151455537,-2486.72,0.00030958,8]
[401355250,1768151455547,-4899.58,0.00030958,8]
[401355251,1768151455557,-16913.26,0.00030958,8]
[401355252,1768151455567,-3222.62,0.00030958,8]
[401355253,1768151455576,-2226.28,0.00030958,8]
[401355254,1768151455587,-6797.13,0.00030958,8]
[401355255,1768151455599,-4204.37,0.00030958,8]
[401355256,1768151455610,-2536.91,0.00030958,8]
[401355257,1768151455619,-500.0,0.0003104,7]
[401355258,1768151455628,-715.1,0.00031101,4]
[401355259,1768151455638,-200.0,0.00031231,10]
[401355260,1768151455648,-500.0,0.00031232,8]
[401355261,1768151455657,-755.83,0.00031232,8]
[401355262,1768151455666,-511.42,0.00031232,8]
[401355263,1768151455676,-637.48,0.00031232,2]
[401355264,1768151455685,-2011.31,0.00031232,8]
[401355265,1768151455695,-2769.41,0.00031232,3]
[401355266,1768151455704,-1000.0,0.00031232,2]
[401355267,1768151455714,-2486.72,0.00031232,8]
[401355268,1768151455723,-4899.58,0.00031232,8]
[401355269,1768151455732,-16913.26,0.00031232,8]
[401355270,1768151455742,-3222.62,0.00031232,8]
[401355271,1768151455753,-2226.28,0.00031232,8]
[401355272,1768151455763,-6797.13,0.00031232,8]
[401355273,1768151455772,-4204.37,0.00031232,8]
[401355274,1768151455782,-2536.91,0.00031232,8]
[401355275,1768151455792,-850.0,0.00031233,5]
[401355276,1768151455802,-500.0,0.00031233,120]
[401355277,1768151455811,-500.0,0.00031235,7]
[401355278,1768151455821,-500.0,0.00031246,7]
[401355279,1768151455830,-31199.11,0.000313,2]
[401355280,1768151455841,-500.0,0.00031326,7]
[401355281,1768151455850,-500.0,0.00031333,7]
[401355282,1768151455860,-151.0,0.000314,13]
[401355283,1768151455869,-163.23,0.000314,7]
[401355284,1768151455878,-164.06,0.000314,7]
[401355285,1768151455888,-500.0,0.0003144,7]
[401355286,1768151455898,-500.0,0.00031473,7]
[401355287,1768151455908,-500.0,0.00031506,8]
[401355288,1768151455918,-755.83,0.00031506,8]
[401355289,1768151455927,-511.42,0.00031506,8]
[401355290,1768151455937,-637.48,0.00031506,2]
[401355291,1768151455946,-2011.31,0.00031506,8]
[401355292,1768151455956,-2769.41,0.00031506,3]
[401355293,1768151455966,-1000.0,0.00031506,2]
[401355294,1768151455975,-2486.72,0.00031506,8]
[401355295,1768151455985,-4899.58,0.00031506,8]
[401355296,1768151455995,-16913.26,0.00031506,8]
[401355297,1768151456005,-3222.62,0.00031506,8]
[401355298,1768151456014,-2226.28,0.00031506,8]
[401355299,1768151456024,-6797.13,0.00031506,8]
[401355300,1768151456033,-4204.37,0.00031506,8]
[401355301,1768151456043,-2536.91,0.00031506,8]
[401355302,1768151456052,-1822.0,0.00031521,2]
[401355303,1768151456062,-1822.0,0.00031561,2]
[401355304,1768151456072,-4588.94076166,0.0003169,2]
[401355305,1768151456081,-151.0,0.000317,17]
[401355306,1768151456092,-155.57399191,0.00031741,10]
[401355307,1768151456102,-500.0,0.0003178,8]
[401355308,1768151456112,-755.83,0.0003178,8]
[401355309,1768151456121,-511.42,0.0003178,8]
[401355310,1768151456131,-637.48,0.0003178,2]
[401355311,1768151456141,-2011.31,0.0003178,8]
[401355312,1768151456150,-2769.41,0.0003178,3]
[401355313,1768151456160,-1000.0,0.0003178,2]
[401355314,1768151456170,-2486.72,0.0003178,8]
[401355315,1768151456187,-4899.58,0.0003178,8]
[401355316,1768151456197,-16913.26,0.0003178,8]
[401355317,1768151456207,-3222.62,0.0003178,8]
[401355318,1768151456216,-2226.28,0.0003178,8]
[401355319,1768151456227,-6797.13,0.0003178,8]
[401355320,1768151456236,-4204.37,0.0003178,8]
[401355321,1768151456246,-2536.91,0.0003178,8]
[401355322,1768151456257,-950.0,0.00031781,5]
[401355323,1768151456267,-500.0,0.00031781,120]
[401355324,1768151456277,-3180.59,0.000318,14]
[401355325,1768151456287,-500.0,0.00031858,7]
[401355326,1768151456296,-5000.0,0.0003187,2]
[401355327,1768151456306,-1820.0,0.0003188,2]
[401355328,1768151456315,-500.0,0.00031892,7]
[401355329,1768151456325,-151.0,0.000319,20]
[401355330,1768151456334,-643.73891296,0.00031997,23]
[401355331,1768151456344,-1820.0,0.00032007,2]
[401355332,1768151456354,-500.0,0.00032017,7]
[401355333,1768151456363,-836.72987461,0.00032044,7]
[401355334,1768151456373,-200.0,0.00032053,10]
[401355335,1768151456446,-500.0,0.00032054,8]
[401355336,1768151456456,-755.83,0.00032054,8]
[401355337,1768151456466,-511.42,0.00032054,8]
[401355338,1768151456477,-637.48,0.00032054,2]
[401355339,1768151456487,-2011.31,0.00032054,8]
[401355340,1768151456496,-2769.41,0.00032054,3]
[401355341,1768151456506,-597.28226585,0.00032054,2]
[401355342,1768151456515,-2486.72,0.00032054,8]
[401355343,1768151456525,-4899.58,0.00032054,8]
[401355344,1768151456534,-16913.26,0.00032054,8]
[401355345,1768151456543,-3222.62,0.00032054,8]
[401355346,1768151456554,-2226.28,0.00032054,8]
[401355347,1768151456564,-6797.13,0.00032054,8]
[401355348,1768151456575,-4204.37,0.00032054,8]
[401355349,1768151456584,-2536.91,0.00032054,8]
[401355350,1768151456594,-1235.83790287,0.00032115,2]
[401355351,1768151456604,-151.0,0.000322,17]
[401355352,1768151456613,-1820.0,0.000323,2]
[401355353,1768151456623,-1820.0,0.00032313,2]
[401355354,1768151456632,-266.0,0.00032316,2]
[401355355,1768151456642,-500.0,0.00032328,8]
[401355356,1768151456652,-755.83,0.00032328,8]
[401355357,1768151456662,-511.42,0.00032328,8]
[401355358,1768151456672,-637.48,0.00032328,2]
[401355359,1768151456682,-2011.31,0.00032328,8]
[401355360,1768151456692,-2769.41,0.00032328,3]
[401355361,1768151456702,-2486.72,0.00032328,8]
[401355362,1768151456711,-4899.58,0.00032328,8]
[401355363,1768151456720,-16913.26,0.00032328,8]
[401355364,1768151456730,-3222.62,0.00032328,8]
[401355365,1768151456739,-2226.28,0.00032328,8]
[401355366,1768151456749,-6797.13,0.00032328,8]
[401355367,1768151456759,-4204.37,0.00032328,8]
[401355368,1768151456769,-2536.91,0.00032328,8]
[401355369,1768151456779,-1050.0,0.00032329,5]
[401355370,1768151456789,-551.32,0.00032329,120]
[401355371,1768151456802,-8476.65007153,0.00032357,2]
[401355372,1768151456813,-1822.0,0.00032383,2]
[401355373,1768151456824,-151.0,0.000324,12]
[401355374,1768151456835,-3171.0,0.000324,120]
[401355375,1768151456844,-1820.0,0.00032406,2]
[401355376,1768151456855,-475.0,0.00032516,120]
[401355377,1768151456865,-475.0,0.00032516,120]
[401355378,1768151456875,-475.0,0.00032516,120]
[401355379,1768151456885,-475.0,0.00032516,120]
[401355380,1768151456894,-475.0,0.00032516,120]
[401355381,1768151456904,-715.1,0.00032576,5]
[401355382,1768151456913,-1824.0,0.00032587,7]
[401355383,1768151456922,-500.0,0.00032602,8]
[401355384,1768151456932,-755.83,0.00032602,8]
[401355385,1768151456942,-511.42,0.00032602,8]
[401355386,1768151456965,-637.48,0.00032602,2]
[401355387,1768151456981,-2011.31,0.00032602,8]
[401355388,1768151457008,-2769.41,0.00032602,3]
[401355389,1768151457028,-2486.72,0.00032602,8]
[401355390,1768151457051,-4899.58,0.00032602,8]
[401355391,1768151457068,-16913.26,0.00032602,8]
[401355392,1768151457087,-3222.62,0.00032602,8]
[401355393,1768151457102,-2226.28,0.00032602,8]
[401355394,1768151457118,-6797.13,0.00032602,8]
[401355395,1768151457139,-4204.37,0.00032602,8]
[401355396,1768151457160,-2536.91,0.00032602,8]
[401355397,1768151457179,-180.0,0.0003263,54]
[401355398,1768151457192,-364.4063611,0.00032643,2]
[401355399,1768151457213,-72024.568102,0.00032643,2]
[401355400,1768151457228,-311.0,0.00032648,2]
[401355401,1768151457245,-4584.14237789,0.0003267,7]
[401355402,1768151457261,-2056.40202889,0.0003267,7]
[401355403,1768151457277,-347.0,0.0003267,7]
[401355404,1768151457292,-347.0,0.0003267,7]
[401355405,1768151457307,-347.0,0.0003267,7]
[401355406,1768151457322,-347.0,0.0003267,7]
[401355407,1768151457337,-166.0,0.0003267,7]
[401355408,1768151457351,-202.09107074,0.0003267,7]
[401355409,1768151457368,-151.0,0.0003267,7]
[401355410,1768151457383,-347.0,0.0003267,7]
[401355411,1768151457397,-347.0,0.0003267,7]
[401355412,1768151457412,-151.0,0.0003267,7]
[401355413,1768151457427,-347.0,0.0003267,7]
[401355414,1768151457441,-151.0,0.0003267,7]
[401355415,1768151457455,-151.0,0.0003267,7]
[401355416,1768151457471,-302.0,0.0003267,7]
[401355417,1768151457485,-336.0,0.0003267,7]
[401355418,1768151457500,-336.0,0.0003267,7]
[401355419,1768151457515,-336.0,0.0003267,7]
[401355420,1768151457530,-336.0,0.0003267,7]
[401355421,1768151457545,-336.0,0.0003267,7]
[401355422,1768151457560,-336.0,0.0003267,7]
[401355423,1768151457574,-336.0,0.0003267,7]
[401355424,1768151457589,-151.0,0.0003267,7]
[401355425,1768151457603,-336.0,0.0003267,7]
[401355426,1768151457618,-151.0,0.0003267,7]
[401355427,1768151457632,-336.0,0.0003267,7]
[401355428,1768151457647,-336.0,0.0003267,7]
[401355429,1768151457662,-336.0,0.0003267,7]
[401355430,1768151457677,-4314.31678267,0.0003267,7]
[401355431,1768151457691,-7662.22660603,0.0003267,7]
[401355432,1768151457707,-4626.904565,0.0003267,7]
[401355433,1768151457723,-8217.38250743,0.0003267,7]
[401355434,1768151457739,-1407.00262092,0.0003267,7]
[401355435,1768151457753,-288321.91455348,0.0003267,2]
[401355436,1768151458180,-454.23047744,0.000149,2]
[401355437,1768151458190,-2571.94061875,0.00030252,2]
[401355438,1768151458201,-2571.94061875,0.00030448,2]
[401355439,1768151458211,-2571.94061875,0.00030734,2]
[401355440,1768151458222,-2571.94061875,0.00031222,2]
[401355441,1768151458232,-2571.94061875,0.0003134,2]
[401355442,1768151458243,-2571.94061875,0.00031538,2]
[401355443,1768151458253,-2571.94061875,0.0003194,2]
[401355444,1768151458263,-2571.94061875,0.00032249,2]
[401355445,1768151458273,-2571.94061876,0.00032332,2]
[401355446,1768151458283,-394791.0826977,0.0003267,2]
[401355447,1768151458294,-1826.29684727,0.0003267,2]
[401355448,1768151468142,155.0,5.98e-05,2]
[401355449,1768151487564,-500.0,8.059e-05,2]
[401355450,1768151487595,-500.0,8.059e-05,2]
[401355451,1768151487624,-453.14767199,8.059e-05,2]
[401355452,1768151487655,-174.95791233,8.059e-05,2]
[401355453,1768151487688,-291.30838253,8.059e-05,2]
[401355454,1768151487724,-281.88107313,8.059e-05,2]
[401355455,1768151499383,500.0,8.059e-05,2]
[401355456,1768151499417,500.0,8.059e-05,2]
[401355457,1768151499464,500.0,8.059e-05,2]
[401355458,1768151499510,500.0,8.059e-05,2]
[401355459,1768151499547,332.92752527,8.059e-05,2]
[401355460,1768151499596,500.0,8.059e-05,2]
[401355461,1768151499631,500.0,8.059e-05,2]
[401355462,1768151499665,500.0,8.059e-05,2]
[401355463,1768151499701,500.0,8.059e-05,2]
[401355464,1768151499746,500.0,8.059e-05,2]
[401355465,1768151499804,500.0,8.059e-05,2]
[401355466,1768151499838,264.49239477,8.059e-05,2]
[401355467,1768151499860,235.50760523,8.059e-05,2]
[401355468,1768151499904,500.0,8.059e-05,2]
[401355469,1768151499942,622.40937647,8.059e-05,2]
[401355470,1768151499990,500.0,8.059e-05,2]
[401355471,1768151500036,500.0,8.059e-05,2]
[401355472,1768151512177,-500.0,8.16e-05,2]
[401355473,1768151512210,-500.0,8.16e-05,2]
[401355474,1768151512241,-500.0,8.16e-05,2]
[401355475,1768151512273,-325.42288501,8.16e-05,2]
[401355476,1768151512304,-582.56446574,8.16e-05,2]
[401355477,1768151512333,-582.56446574,8.16e-05,2]
[401355478,1768151512363,-582.56446574,8.16e-05,2]
[401355479,1768151512395,-582.56446574,8.16e-05,2]
[401355480,1768151512426,-582.56446574,8.16e-05,2]
[401355481,1768151527961,-2642.32352401,8.06e-05,2]
[401355482,1768151527988,-10000.01,8.06e-05,2]
[401355483,1768151528082,-10000.01,8.06e-05,2]
[401355484,1768151528256,-10000.01,8.06e-05,2]
[401355485,1768151528372,-10000.01,8.06e-05,2]
[401355486,1768151528498,-10000.01,8.06e-05,2]
[401355487,1768151528656,-10000.01,8.06e-05,2]
[401355488,1768151528803,-10000.01,8.06e-05,2]
[401355489,1768151540819,-10000.01,8.06e-05,2]
[401355490,1768151541034,-10000.01,8.06e-05,2]
[401355492,1768151555487,-500.0,8.059e-05,2]
[401355493,1768151555516,-500.0,8.059e-05,2]
[401355494,1768151555636,-8000.01,8.06e-05,2]
[401355495,1768151555803,-10000.01,8.06e-05,2]
[401355496,1768151556607,-10000.01,8.06e-05,2]
[401355497,1768151556972,-10000.01,8.06e-05,2]
[401355498,1768151557279,-10000.01,8.06e-05,2]
[401355499,1768151566129,-10000.01,8.06e-05,2]
[401355500,1768151567452,-10000.01,8.06e-05,2]
[401355501,1768151582118,-10000.01,8.06e-05,2]
[401355502,1768151582266,-10000.01,8.06e-05,2]
[401355503,1768151582558,-10000.01,8.06e-05,2]
[401355504,1768151582655,-10000.01,8.06e-05,2]
[401355505,1768151582754,-10000.01,8.06e-05,2]
[401355506,1768151608283,-10000.01,8.06e-05,2]
[401355507,1768151608493,-10000.01,8.06e-05,2]
[401355508,1768151608859,-10000.01,8.06e-05,2]
[401355509,1768151609084,-10000.01,8.06e-05,2]
[401355510,1768151636495,-10000.01,8.06e-05,2]
[401355513,1768151641538,-10000.01,8.06e-05,2]
[401355514,1768151641680,-10000.01,8.06e-05,2]
[401355515,1768151641802,-10000.01,8.06e-05,2]
[401355516,1768151641902,-10000.01,8.06e-05,2]
[401355517,1768151671671,-10000.01,8.06e-05,2]
[401355518,1768151672026,-10000.01,8.06e-05,2]
[401355519,1768151672239,-10000.01,8.06e-05,2]
[401355520,1768151672397,-10000.01,8.06e-05,2]
[401355521,1768151672631,-10000.01,8.06e-05,2]
[401355524,1768151703168,363.94559981,0.00027397,120]
[401355525,1768151756242,155.79,6.957e-05,2]
[401355526,1768151756836,194.74,7.247e-05,2]
[401355527,1768151757245,233.68,7.536e-05,2]
[401355529,1768151802218,151.0,0.00030137,120]
[401355530,1768151813668,151.0,0.00030137,120]
[401355532,1768151820443,151.0,0.00030137,120]
[401355533,1768151827344,151.0,0.00030137,120]
[401355534,1768151827880,157.56,7.056e-05,2]
[401355535,1768151828273,189.07,7.338e-05,2]
[401355536,1768151828679,220.58,7.62e-05,2]
[401355537,1768151836065,151.0,0.00030137,120]
[401355538,1768151844161,151.0,0.00030137,120]
[401355541,1768151853108,151.0,0.00030137,120]
[401355542,1768151860892,151.0,0.00030137,120]
[401355543,1768151868434,151.0,0.00030137,120]
[401355544,1768151875434,151.0,0.00030137,120]
[401355545,1768151883929,151.0,0.00030137,120]
[401355546,1768151893051,151.0,0.00030137,120]
[401355547,1768151899072,170.05,7.401e-05,2]
[401355548,1768151899578,194.34,7.675e-05,2]
[401355549,1768151900803,151.0,0.00030137,120]
[401355550,1768151908690,151.0,0.00030137,120]
[401355551,1768151917028,151.0,0.00030137,120]
[401355552,1768151924560,151.0,0.00030137,120]
[401355553,1768151934505,151.0,0.00030137,120]
[401355554,1768151966935,151.0,0.00030137,120]
[401355555,1768151979266,151.0,0.00030137,120]
[401355556,1768151985996,151.0,0.00030137,120]
[401355558,1768151992743,151.0,0.00030137,120]
[401355559,1768151999979,151.0,0.00030137,120]
[401355561,1768152004330,1993.14,5e-05,2]
[401355562,1768152004895,1993.14,5.5e-05,2]
[401355563,1768152005474,1993.14,6e-05,2]
[401355564,1768152005964,1993.14,6.5e-05,2]
[401355565,1768152006543,1993.14,7.1e-05,2]
[401355566,1768152007038,151.0,0.00030137,120]
[401355567,1768152007098,34.31,7.6e-05,2]
[401355568,1768152007120,1958.83,7.6e-05,2]
[401355569,1768152014223,151.0,0.00030137,120]
[401355571,1768152022673,151.0,0.00030137,120]
[401355572,1768152030748,151.0,0.00030137,120]
[401355573,1768152037965,167.44,6.876e-05,2]
[401355574,1768152038381,200.92,7.151e-05,2]
[401355575,1768152038414,151.0,0.00030137,120]
[401355576,1768152038853,234.41,7.426e-05,2]
[401355577,1768152038915,2605.8806177,7.058e-05,2]
[401355578,1768152039298,267.9,7.701e-05,2]
[401355579,1768152045862,151.0,0.00030137,120]
[401355580,1768152054752,151.0,0.00030137,120]
[401355582,1768152071452,151.0,0.00030137,120]
[401355583,1768152078722,151.0,0.00030137,120]
[401355584,1768152085343,151.0,0.00030137,120]
[401355586,1768152103334,151.0,0.00030137,120]
[401355587,1768152105488,-529.0,7.742e-05,2]
[401355588,1768152105518,-301.39,7.976e-05,2]
[401355589,1768152105545,-431.02618507,8.003e-05,2]
[401355590,1768152105572,-300.0,8.056e-05,2]
[401355591,1768152105600,-500.0,8.057e-05,2]
[401355592,1768152105628,-500.0,8.057e-05,2]
[401355593,1768152105655,-500.0,8.057e-05,2]
[401355594,1768152105683,-500.0,8.057e-05,2]
[401355595,1768152105712,-500.0,8.057e-05,2]
[401355596,1768152105741,-500.0,8.057e-05,2]
[401355597,1768152105769,-377.17762986,8.057e-05,2]
[401355598,1768152106206,-122.82237014,8.057e-05,2]
[401355599,1768152106236,-400.41264022,8.057e-05,2]
[401355600,1768152106262,-500.0,8.057e-05,2]
[401355601,1768152106288,-252.83611793,8.057e-05,2]
[401355602,1768152106316,-500.0,8.057e-05,2]
[401355603,1768152106346,-500.0,8.057e-05,2]
[401355604,1768152106377,-500.0,8.057e-05,2]
[401355605,1768152106406,-500.0,8.057e-05,2]
[401355606,1768152106436,-425.88083614,8.057e-05,2]
[401355607,1768152106463,-187.36924559,8.057e-05,2]
[401355608,1768152106492,-500.0,8.057e-05,2]
[401355609,1768152106521,-500.0,8.057e-05,2]
[401355610,1768152106559,-500.0,8.057e-05,2]
[401355611,1768152106589,-500.0,8.057e-05,2]
[401355612,1768152106617,-500.0,8.057e-05,2]
[401355613,1768152106644,-500.0,8.057e-05,2]
[401355614,1768152106672,-500.0,8.057e-05,2]
[401355615,1768152106700,-500.0,8.057e-05,2]
[401355616,1768152106729,-500.0,8.057e-05,2]
[401355617,1768152106757,-500.0,8.057e-05,2]
[401355618,1768152106786,-500.0,8.057e-05,2]
[401355619,1768152106813,-500.0,8.057e-05,2]
[401355620,1768152106874,-500.0,8.057e-05,2]
[401355621,1768152106901,-500.0,8.057e-05,2]
[401355622,1768152106927,-500.0,8.057e-05,2]
[401355623,1768152106955,-500.0,8.057e-05,2]
[401355624,1768152106982,-500.0,8.057e-05,2]
[401355625,1768152107011,-500.0,8.057e-05,2]
[401355626,1768152107038,-500.0,8.057e-05,2]
[401355627,1768152107066,-500.0,8.057e-05,2]
[401355628,1768152107094,-500.0,8.057e-05,2]
[401355629,1768152107125,-500.0,8.057e-05,2]
[401355630,1768152107356,-500.0,8.057e-05,2]
[401355631,1768152107387,-500.0,8.057e-05,2]
[401355632,1768152107417,-500.0,8.057e-05,2]
[401355633,1768152107446,-500.0,8.057e-05,2]
[401355634,1768152107476,-500.0,8.057e-05,2]
[401355635,1768152107507,-500.0,8.057e-05,2]
[401355636,1768152107537,-225.34731912,8.057e-05,2]
[401355637,1768152107656,-500.0,8.057e-05,2]
[401355638,1768152107688,-413.44414857,8.057e-05,2]
[401355639,1768152107738,-500.0,8.057e-05,2]
[401355640,1768152107773,-222.42706462,8.057e-05,2]
[401355641,1768152107970,-277.57293538,8.057e-05,2]
[401355642,1768152108003,-500.0,8.057e-05,2]
[401355643,1768152108033,-500.0,8.057e-05,2]
[401355644,1768152108065,-500.0,8.057e-05,2]
[401355645,1768152108096,-500.0,8.057e-05,2]
[401355646,1768152108128,-500.0,8.057e-05,2]
[401355647,1768152108161,-500.0,8.057e-05,2]
[401355648,1768152108195,-500.0,8.057e-05,2]
[401355649,1768152108226,-500.0,8.057e-05,2]
[401355650,1768152108257,-500.0,8.057e-05,2]
[401355651,1768152108499,-500.0,8.057e-05,2]
[401355652,1768152108528,-500.0,8.057e-05,2]
[401355653,1768152108558,-500.0,8.057e-05,2]
[401355654,1768152108588,-500.0,8.057e-05,2]
[401355655,1768152108618,-500.0,8.057e-05,2]
[401355656,1768152108648,-500.0,8.057e-05,2]
[401355657,1768152108679,-499.99999999,8.057e-05,2]
[401355658,1768152109037,185.99,6.594e-05,2]
[401355659,1768152109426,232.49,6.868e-05,2]
[401355660,1768152109921,278.99,7.143e-05,2]
[401355661,1768152110365,-6527.4820397,8.058e-05,2]
[401355662,1768152110423,325.49,7.418e-05,2]
[401355663,1768152110710,-371.99,7.692e-05,2]
[401355664,1768152111526,151.0,0.00030137,120]
[401355665,1768152118243,151.0,0.00030137,120]
[401355666,1768152124562,151.0,0.00030137,120]
[401355668,1768152131904,151.0,0.00030137,120]
[401355669,1768152138645,-300.0,7.095e-05,2]
[401355670,1768152138677,-418.49,7.967e-05,2]
[401355671,1768152138707,-300.0,8.057e-05,2]
[401355672,1768152138740,-767.38327752,8.059e-05,2]
[401355673,1768152138770,-767.38327752,8.059e-05,2]
[401355674,1768152138935,-4593.49688992,8.06e-05,2]
[401355675,1768152138964,-10000.01,8.06e-05,2]
[401355676,1768152139002,-10000.01,8.06e-05,2]
[401355677,1768152139093,-10000.01,8.06e-05,2]